fUSD/lending_fUSD_20251023
["ID","MTS","AMOUNT","RATE_DAILY","PERIOD"]
[392195856,1761250243648,-500.0,0.00043835,120]
[392195857,1761250243658,-500.0,0.00043835,120]
[392195858,1761250243667,-500.0,0.00043835,120]
[392195859,1761250243677,-213.44,0.00043835,120]
[392195860,1761250243686,-528.71135874,0.00043835,120]
[392195861,1761250243695,-508.01640292,0.00043835,120]
[392195862,1761250243704,-500.0,0.00043835,120]
[392195863,1761250243714,-500.0,0.00043835,120]
[392195864,1761250243723,-503.7720251,0.00043835,120]
[392195865,1761250243734,-500.0,0.00043835,120]
[392195866,1761250243748,-222.95575444,0.00043835,120]
[392195867,1761250243757,-500.0,0.00043835,120]
[392195868,1761250243767,-500.0,0.00043835,120]
[392195869,1761250243776,-500.0,0.00043835,120]
[392195870,1761250243785,-500.0,0.00043835,120]
[392195871,1761250243794,-507.35499806,0.00043835,120]
[392195872,1761250243803,-346.44,0.00043835,120]
[392195873,1761250243812,-500.0,0.00043835,120]
[392195874,1761250243821,-500.0,0.00043835,120]
[392195875,1761250243831,-500.0,0.00043835,120]
[392195876,1761250243840,-500.0,0.00043835,120]
[392195877,1761250243850,-500.0,0.00043835,120]
[392195878,1761250243859,-226.15865109,0.00043835,120]
[392195879,1761250243869,-500.0,0.00043835,120]
[392195880,1761250243879,-500.0,0.00043835,120]
[392195881,1761250243888,-500.0,0.00043835,120]
[392195882,1761250243898,-500.0,0.00043835,120]
[392195884,1761250243909,-500.0,0.00043835,120]
[392195885,1761250243918,-500.0,0.00043835,120]
[392195886,1761250243927,-500.0,0.00043835,120]
[392195887,1761250243936,-500.0,0.00043835,120]
[392195888,1761250243946,-500.0,0.00043835,120]
[392195889,1761250243955,-500.0,0.00043835,120]
[392195890,1761250243964,-589.6,0.00043835,120]
[392195891,1761250243975,-500.0,0.00043835,120]
[392195892,1761250243984,-500.0,0.00043835,120]
[392195893,1761250243993,-413.45695117,0.00043835,120]
[392195894,1761250244002,-500.0,0.00043835,120]
[392195895,1761250244012,-500.0,0.00043835,120]
[392195896,1761250244023,-500.0,0.00043835,120]
[392195897,1761250244032,-500.0,0.00043835,120]
[392195898,1761250244042,-500.0,0.00043835,120]
[392195899,1761250244051,-500.0,0.00043835,120]
[392195900,1761250244060,-500.0,0.00043835,120]
[392195901,1761250244069,-500.0,0.00043835,120]
[392195902,1761250244078,-500.0,0.00043835,120]
[392195903,1761250244088,-500.0,0.00043835,120]
[392195904,1761250244098,-500.0,0.00043835,120]
[392195905,1761250244107,-500.0,0.00043835,120]
[392195906,1761250244115,-500.0,0.00043835,120]
[392195907,1761250244124,-500.0,0.00043835,120]
[392195908,1761250244133,-500.0,0.00043835,120]
[392195909,1761250244141,-500.0,0.00043835,120]
[392195910,1761250244150,-500.0,0.00043835,120]
[392195911,1761250244159,-500.0,0.00043835,120]
[392195912,1761250244168,-500.0,0.00043835,120]
[392195913,1761250244177,-500.0,0.00043835,120]
[392195914,1761250244186,-500.0,0.00043835,120]
[392195915,1761250244195,-500.0,0.00043835,120]
[392195916,1761250244205,-500.0,0.00043835,120]
[392195917,1761250244215,-500.0,0.00043835,120]
[392195918,1761250244341,-500.0,0.00043835,120]
[392195919,1761250244352,-500.0,0.00043835,120]
[392195920,1761250244366,-546.66,0.00043835,120]
[392195921,1761250244375,-500.0,0.00043835,120]
[392195922,1761250244385,-500.0,0.00043835,120]
[392195923,1761250244394,-229.88420492,0.00043835,120]
[392195924,1761250244404,-500.0,0.00043835,120]
[392195925,1761250244413,-500.0,0.00043835,120]
[392195926,1761250244423,-500.0,0.00043835,120]
[392195927,1761250244432,-500.0,0.00043835,120]
[392195928,1761250244442,-204.63,0.00043835,120]
[392195929,1761250244451,-500.0,0.00043835,120]
[392195930,1761250244460,-500.0,0.00043835,120]
[392195931,1761250244470,-500.0,0.00043835,120]
[392195932,1761250244480,-500.0,0.00043835,120]
[392195933,1761250244490,-500.0,0.00043835,120]
[392195934,1761250244499,-500.0,0.00043835,120]
[392195935,1761250244509,-500.0,0.00043835,120]
[392195936,1761250244519,-500.0,0.00043835,120]
[392195937,1761250244528,-500.0,0.00043835,120]
[392195938,1761250244538,-500.0,0.00043835,120]
[392195939,1761250244547,-500.0,0.00043835,120]
[392195940,1761250244558,-500.0,0.00043835,120]
[392195941,1761250244568,-500.0,0.00043835,120]
[392195942,1761250244578,-500.0,0.00043835,120]
[392195943,1761250244588,-500.0,0.00043835,120]
[392195944,1761250244597,-500.0,0.00043835,120]
[392195945,1761250244607,-500.0,0.00043835,120]
[392195946,1761250244616,-500.0,0.00043835,120]
[392195947,1761250244625,-500.0,0.00043835,120]
[392195948,1761250244635,-512.3658179,0.00043835,120]
[392195949,1761250244644,-500.0,0.00043835,120]
[392195950,1761250244655,-500.0,0.00043835,120]
[392195951,1761250244664,-500.0,0.00043835,120]
[392195952,1761250244674,-500.0,0.00043835,120]
[392195953,1761250244683,-500.0,0.00043835,120]
[392195954,1761250244692,-312.43,0.00043835,120]
[392195955,1761250244702,-500.0,0.00043835,120]
[392195956,1761250244712,-500.0,0.00043835,120]
[392195957,1761250244722,-500.0,0.00043835,120]
[392195958,1761250244731,-415.2,0.00043835,120]
[392195959,1761250244744,-500.0,0.00043835,120]
[392195960,1761250244754,-500.0,0.00043835,120]
[392195961,1761250244764,-500.0,0.00043835,120]
[392195962,1761250244774,-500.0,0.00043835,120]
[392195963,1761250244785,-500.0,0.00043835,120]
[392195964,1761250244795,-502.49533722,0.00043835,120]
[392195965,1761250244805,-500.0,0.00043835,120]
[392195966,1761250244816,-500.0,0.00043835,120]
[392195967,1761250244826,-500.0,0.00043835,120]
[392195968,1761250244836,-523.33711117,0.00043835,120]
[392195969,1761250244845,-500.0,0.00043835,120]
[392195970,1761250244855,-500.0,0.00043835,120]
[392195971,1761250244865,-500.0,0.00043835,120]
[392195972,1761250244874,-500.0,0.00043835,120]
[392195973,1761250244884,-513.56799735,0.00043835,120]
[392195974,1761250244894,-504.05098711,0.00043835,120]
[392195975,1761250244903,-529.95956656,0.00043835,120]
[392195976,1761250244913,-500.0,0.00043835,120]
[392195977,1761250244923,-500.0,0.00043835,120]
[392195978,1761250244932,-500.0,0.00043835,120]
[392195979,1761250244942,-505.60439364,0.00043835,120]
[392195980,1761250244951,-500.0,0.00043835,120]
[392195981,1761250244961,-500.0,0.00043835,120]
[392195982,1761250244971,-500.0,0.00043835,120]
[392195983,1761250244980,-585.9779071,0.00043835,120]
[392195984,1761250244990,-758.26,0.00043835,120]
[392195985,1761250245000,-500.0,0.00043835,120]
[392195986,1761250245009,-500.0,0.00043835,120]
[392195987,1761250245019,-500.0,0.00043835,120]
[392195988,1761250245028,-500.0,0.00043835,120]
[392195989,1761250245038,-500.0,0.00043835,120]
[392195990,1761250245047,-500.0,0.00043835,120]
[392195991,1761250245057,-500.0,0.00043835,120]
[392195992,1761250245066,-500.0,0.00043835,120]
[392195993,1761250245075,-500.0,0.00043835,120]
[392195994,1761250245085,-561.38857345,0.00043835,120]
[392195995,1761250245094,-500.0,0.00043835,120]
[392195996,1761250245104,-500.0,0.00043835,120]
[392195997,1761250245114,-500.0,0.00043835,120]
[392195998,1761250245123,-352.7,0.00043835,120]
[392195999,1761250245133,-1112.54,0.00043835,120]
[392196000,1761250245143,-500.0,0.00043835,120]
[392196001,1761250245152,-500.0,0.00043835,120]
[392196002,1761250245162,-500.0,0.00043835,120]
[392196003,1761250245172,-182.31,0.00043835,120]
[392196004,1761250245182,-500.0,0.00043835,120]
[392196005,1761250245192,-500.0,0.00043835,120]
[392196006,1761250245202,-500.0,0.00043835,120]
[392196007,1761250245212,-500.0,0.00043835,120]
[392196008,1761250245221,-500.0,0.00043835,120]
[392196009,1761250245231,-500.0,0.00043835,120]
[392196010,1761250245241,-500.0,0.00043835,120]
[392196011,1761250245251,-368.45991479,0.00043835,120]
[392196012,1761250245261,-500.0,0.00043835,120]
[392196013,1761250245270,-500.0,0.00043835,120]
[392196014,1761250245280,-500.0,0.00043835,120]
[392196015,1761250245289,-500.0,0.00043835,120]
[392196016,1761250245299,-500.0,0.00043835,120]
[392196017,1761250245308,-500.0,0.00043835,120]
[392196018,1761250245318,-500.0,0.00043835,120]
[392196019,1761250245328,-500.0,0.00043835,120]
[392196020,1761250245338,-500.0,0.00043835,120]
[392196021,1761250245349,-500.0,0.00043835,120]
[392196022,1761250245358,-500.0,0.00043835,120]
[392196023,1761250245368,-500.0,0.00043835,120]
[392196024,1761250245379,-500.0,0.00043835,120]
[392196025,1761250245389,-500.0,0.00043835,120]
[392196026,1761250245400,-500.0,0.00043835,120]
[392196027,1761250245410,-500.0,0.00043835,120]
[392196028,1761250245419,-500.0,0.00043835,120]
[392196029,1761250245429,-500.0,0.00043835,120]
[392196030,1761250245439,-500.0,0.00043835,120]
[392196031,1761250245448,-500.0,0.00043835,120]
[392196032,1761250245458,-500.0,0.00043835,120]
[392196033,1761250245468,-500.0,0.00043835,120]
[392196034,1761250245478,-500.0,0.00043835,120]
[392196035,1761250245488,-500.0,0.00043835,120]
[392196036,1761250245498,-500.0,0.00043835,120]
[392196037,1761250245507,-206.00071571,0.00043835,120]
[392196038,1761250245517,-500.0,0.00043835,120]
[392196039,1761250245527,-500.0,0.00043835,120]
[392196040,1761250245536,-500.0,0.00043835,120]
[392196041,1761250245546,-583.91106944,0.00043835,120]
[392196042,1761250245555,-500.0,0.00043835,120]
[392196043,1761250245565,-500.0,0.00043835,120]
[392196044,1761250245575,-500.0,0.00043835,120]
[392196045,1761250245585,-500.0,0.00043835,120]
[392196046,1761250245595,-500.0,0.00043835,120]
[392196047,1761250245605,-500.0,0.00043835,120]
[392196048,1761250245614,-500.0,0.00043835,120]
[392196049,1761250245623,-500.0,0.00043835,120]
[392196050,1761250245633,-500.0,0.00043835,120]
[392196051,1761250245643,-500.0,0.00043835,120]
[392196052,1761250245652,-500.0,0.00043835,120]
[392196053,1761250245662,-500.0,0.00043835,120]
[392196054,1761250245671,-500.0,0.00043835,120]
[392196055,1761250245681,-382.01602968,0.00043835,120]
[392196056,1761250245692,-500.0,0.00043835,120]
[392196057,1761250245702,-500.0,0.00043835,120]
[392196058,1761250245712,-506.15094977,0.00043835,120]
[392196059,1761250245723,-500.0,0.00043835,120]
[392196060,1761250245733,-500.0,0.00043835,120]
[392196061,1761250245746,-500.0,0.00043835,120]
[392196062,1761250245756,-500.0,0.00043835,120]
[392196063,1761250245766,-500.0,0.00043835,120]
[392196064,1761250245778,-500.0,0.00043835,120]
[392196065,1761250245787,-500.0,0.00043835,120]
[392196066,1761250245797,-500.0,0.00043835,120]
[392196067,1761250245807,-500.0,0.00043835,120]
[392196068,1761250245821,-512.41187867,0.00043835,120]
[392196069,1761250245831,-500.0,0.00043835,120]
[392196071,1761250245841,-505.82560868,0.00043835,120]
[392196073,1761250245851,-156.33428606,0.00043835,120]
[392196074,1761250245861,-500.0,0.00043835,120]
[392196075,1761250245870,-500.0,0.00043835,120]
[392196076,1761250245880,-514.3491849,0.00043835,120]
[392196077,1761250245890,-500.0,0.00043835,120]
[392196078,1761250245900,-500.0,0.00043835,120]
[392196079,1761250245910,-500.0,0.00043835,120]
[392196080,1761250245920,-500.0,0.00043835,120]
[392196081,1761250245930,-500.0,0.00043835,120]
[392196082,1761250245940,-500.0,0.00043835,120]
[392196083,1761250245950,-500.0,0.00043835,120]
[392196084,1761250245960,-500.0,0.00043835,120]
[392196085,1761250245970,-512.60361063,0.00043835,120]
[392196086,1761250245980,-500.0,0.00043835,120]
[392196087,1761250245989,-390.42,0.00043835,120]
[392196088,1761250246000,-500.0,0.00043835,120]
[392196089,1761250246011,-500.0,0.00043835,120]
[392196090,1761250246021,-500.0,0.00043835,120]
[392196091,1761250246031,-500.0,0.00043835,120]
[392196092,1761250246044,-500.0,0.00043835,120]
[392196093,1761250246053,-500.0,0.00043835,120]
[392196094,1761250246064,-500.0,0.00043835,120]
[392196095,1761250246073,-500.0,0.00043835,120]
[392196096,1761250246083,-500.0,0.00043835,120]
[392196097,1761250246093,-336.55626451,0.00043835,120]
[392196098,1761250246103,-500.0,0.00043835,120]
[392196099,1761250246112,-500.0,0.00043835,120]
[392196100,1761250246122,-500.0,0.00043835,120]
[392196101,1761250246131,-500.0,0.00043835,120]
[392196102,1761250246141,-500.0,0.00043835,120]
[392196103,1761250246151,-169.03103745,0.00043835,120]
[392196104,1761250246161,-500.0,0.00043835,120]
[392196105,1761250246171,-500.0,0.00043835,120]
[392196106,1761250246182,-500.0,0.00043835,120]
[392196107,1761250246191,-525.4167358,0.00043835,120]
[392196108,1761250246201,-500.0,0.00043835,120]
[392196109,1761250246211,-500.0,0.00043835,120]
[392196110,1761250246222,-500.0,0.00043835,120]
[392196111,1761250246232,-500.0,0.00043835,120]
[392196112,1761250246243,-500.0,0.00043835,120]
[392196113,1761250246253,-500.0,0.00043835,120]
[392196114,1761250246264,-500.0,0.00043835,120]
[392196115,1761250246274,-540.11008967,0.00043835,120]
[392196116,1761250246284,-500.0,0.00043835,120]
[392196117,1761250246294,-500.0,0.00043835,120]
[392196118,1761250246303,-444.59009483,0.00043835,120]
[392196119,1761250246313,-507.94165504,0.00043835,120]
[392196120,1761250246323,-500.0,0.00043835,120]
[392196121,1761250246333,-927.61,0.00043835,120]
[392196122,1761250246342,-927.61,0.00043835,120]
[392196123,1761250246354,-927.61,0.00043835,120]
[392196124,1761250246365,-927.61,0.00043835,120]
[392196125,1761250246375,-500.0,0.00043835,120]
[392196126,1761250246386,-927.61,0.00043835,120]
[392196127,1761250246396,-502.29552257,0.00043835,120]
[392196128,1761250246407,-355.84327629,0.00043835,120]
[392196129,1761250246530,-927.61,0.00043835,120]
[392196130,1761250246541,-927.61,0.00043835,120]
[392196131,1761250246551,-927.61,0.00043835,120]
[392196132,1761250246561,-927.61,0.00043835,120]
[392196133,1761250246571,-508.92379499,0.00043835,120]
[392196134,1761250246582,-927.61,0.00043835,120]
[392196135,1761250246592,-500.0,0.00043835,120]
[392196136,1761250246602,-500.0,0.00043835,120]
[392196137,1761250246613,-500.0,0.00043835,120]
[392196138,1761250246623,-500.0,0.00043835,120]
[392196139,1761250246632,-500.0,0.00043835,120]
[392196140,1761250246642,-500.0,0.00043835,120]
[392196141,1761250246652,-500.0,0.00043835,120]
[392196142,1761250246661,-500.0,0.00043835,120]
[392196143,1761250246671,-500.0,0.00043835,120]
[392196144,1761250246680,-500.0,0.00043835,120]
[392196145,1761250246689,-500.0,0.00043835,120]
[392196146,1761250246699,-500.0,0.00043835,120]
[392196147,1761250246709,-450.04,0.00043835,120]
[392196148,1761250246719,-500.0,0.00043835,120]
[392196149,1761250246730,-500.0,0.00043835,120]
[392196150,1761250246741,-500.0,0.00043835,120]
[392196151,1761250246752,-500.0,0.00043835,120]
[392196152,1761250246762,-500.0,0.00043835,120]
[392196153,1761250246772,-500.0,0.00043835,120]
[392196154,1761250246782,-500.0,0.00043835,120]
[392196155,1761250246792,-500.0,0.00043835,120]
[392196156,1761250246802,-500.0,0.00043835,120]
[392196158,1761250246812,-500.0,0.00043835,120]
[392196159,1761250246821,-500.0,0.00043835,120]
[392196160,1761250246831,-500.0,0.00043835,120]
[392196161,1761250246841,-500.0,0.00043835,120]
[392196162,1761250246851,-500.0,0.00043835,120]
[392196163,1761250246860,-500.0,0.00043835,120]
[392196164,1761250246870,-500.0,0.00043835,120]
[392196165,1761250246880,-500.0,0.00043835,120]
[392196166,1761250246890,-504.67934304,0.00043835,120]
[392196167,1761250246900,-500.0,0.00043835,120]
[392196168,1761250246909,-500.0,0.00043835,120]
[392196169,1761250246919,-500.0,0.00043835,120]
[392196170,1761250246929,-500.0,0.00043835,120]
[392196171,1761250246939,-500.0,0.00043835,120]
[392196172,1761250246949,-500.0,0.00043835,120]
[392196173,1761250246959,-463.1,0.00043835,120]
[392196174,1761250246969,-500.0,0.00043835,120]
[392196176,1761250246980,-515.75752497,0.00043835,120]
[392196177,1761250246990,-500.0,0.00043835,120]
[392196178,1761250247000,-415.33120164,0.00043835,120]
[392196180,1761250247599,-149.17888657,0.00043835,120]
[392196181,1761250247609,-500.0,0.00043835,120]
[392196182,1761250247619,-500.0,0.00043835,120]
[392196183,1761250247629,-500.0,0.00043835,120]
[392196184,1761250247639,-500.0,0.00043835,120]
[392196185,1761250247648,-500.0,0.00043835,120]
[392196186,1761250247659,-500.0,0.00043835,120]
[392196187,1761250247668,-500.0,0.00043835,120]
[392196188,1761250247678,-500.0,0.00043835,120]
[392196189,1761250247687,-500.0,0.00043835,120]
[392196190,1761250247697,-500.0,0.00043835,120]
[392196191,1761250247706,-500.0,0.00043835,120]
[392196192,1761250247716,-500.0,0.00043835,120]
[392196193,1761250247726,-500.0,0.00043835,120]
[392196194,1761250247741,-500.0,0.00043835,120]
[392196195,1761250247753,-545.69003904,0.00043835,120]
[392196196,1761250247763,-713.47,0.00043835,120]
[392196197,1761250247775,-503.92974212,0.00043835,120]
[392196198,1761250247788,-156.19390578,0.00043835,120]
[392196199,1761250247801,-500.0,0.00043835,120]
[392196200,1761250247812,-156.53742699,0.00043835,120]
[392196201,1761250248505,-200.0,0.00040356,2]
[392196202,1761250248517,-343.46257301,0.00043835,120]
[392196203,1761250248529,-500.0,0.00043835,120]
[392196204,1761250248542,-500.0,0.00043835,120]
[392196205,1761250248554,-500.0,0.00043835,120]
[392196206,1761250248565,-500.0,0.00043835,120]
[392196207,1761250248577,-500.0,0.00043835,120]
[392196208,1761250248589,-500.0,0.00043835,120]
[392196209,1761250248600,-500.69627431,0.00043835,120]
[392196210,1761250248612,-300.0,0.00043835,120]
[392196211,1761250248623,-500.0,0.00043835,120]
[392196212,1761250248635,-273.24671479,0.00043835,120]
[392196213,1761250248645,-540.85963897,0.00043835,120]
[392196214,1761250248657,-500.0,0.00043835,120]
[392196215,1761250248667,-500.0,0.00043835,120]
[392196216,1761250248678,-503.71453975,0.00043835,120]
[392196217,1761250248689,-500.0,0.00043835,120]
[392196218,1761250248699,-259.94197608,0.00043835,120]
[392196219,1761250248875,-826.02802392,0.00043835,120]
[392196220,1761250248886,-181.30529366,0.00043835,120]
[392196221,1761250249330,-904.66470634,0.00043835,120]
[392196222,1761250249340,-1085.97,0.00043835,120]
[392196223,1761250249349,-89.72174689,0.00043835,120]
[392196224,1761250249360,-996.24825311,0.00043835,120]
[392196225,1761250249371,-1085.97,0.00043835,120]
[392196226,1761250249380,-1085.97,0.00043835,120]
[392196227,1761250249390,-1085.97,0.00043835,120]
[392196228,1761250249399,-1085.97,0.00043835,120]
[392196229,1761250249408,-159.87174689,0.00043835,120]
[392196230,1761250249425,-340.12825311,0.00043835,120]
[392196231,1761250249434,-1048.3147376,0.00043835,120]
[392196232,1761250249464,-37.6552624,0.00043835,120]
[392196233,1761250249474,-1085.97,0.00043835,120]
[392196234,1761250249484,-500.0,0.00043835,120]
[392196235,1761250249494,-500.0,0.00043835,120]
[392196236,1761250249503,-500.0,0.00043835,120]
[392196237,1761250249513,-500.0,0.00043835,120]
[392196238,1761250249523,-500.0,0.00043835,120]
[392196239,1761250249533,-500.0,0.00043835,120]
[392196240,1761250249543,-500.0,0.00043835,120]
[392196241,1761250249553,-500.0,0.00043835,120]
[392196242,1761250249563,-258.06280753,0.00043835,120]
[392196243,1761250249579,-241.93719247,0.00043835,120]
[392196244,1761250249589,-238.86361503,0.00043835,120]
[392196245,1761250249602,-261.13638497,0.00043835,120]
[392196246,1761250249613,-500.0,0.00043835,120]
[392196247,1761250249623,-256.77742004,0.00043835,120]
[392196253,1761250262361,200.0,0.00036612,120]
[392196282,1761250342714,200.0,0.00036612,30]
[392196283,1761250343594,300.0,0.00036612,30]
[392196284,1761250347452,1000.0,0.00036612,60]
[392196286,1761250360214,1000.0,0.00036612,60]
[392196287,1761250366955,150.0,0.00036612,30]
[392196291,1761250389473,-197.33215516,0.00037462,4]
[392196295,1761250394499,-30.85871141,0.00037462,4]
[392196296,1761250394521,-125.81691647,0.00037499,120]
[392196297,1761250397016,-69.18308353,0.00037499,120]
[392196298,1761250397038,-83.77936125,0.00037537,120]
[392196299,1761250401121,500.0,0.00024932,2]
[392196300,1761250402001,-173.55664674,0.00037537,120]
[392196301,1761250403501,-154.37437212,0.00037537,120]
[392196302,1761250419523,-162.55516565,0.00037093,2]
[392196303,1761250421692,-225.12110761,0.00037093,2]
[392196307,1761250503113,3389.84675862,0.00036612,120]
[392196322,1761250561679,200.0,0.00036612,120]
[392196323,1761250562411,1037.63,0.00027,2]
[392196325,1761250575656,1000.0,0.00036612,120]
[392196358,1761250643449,200.0,0.0003661,30]
[392196359,1761250644000,300.0,0.0003661,30]
[392196361,1761250685766,-523.0,0.00035271,2]
[392196362,1761250685790,-3.37120337,0.00035271,2]
[392196364,1761250693014,1949.69637157,0.0003661,120]
[392196365,1761250695429,1000.0,0.0003661,30]
[392196366,1761250697050,161.61540878,0.0003661,120]
[392196367,1761250699370,375.0,0.0003661,30]
[392196368,1761250702899,1000.0,0.0003661,30]
[392196369,1761250714573,1000.0,0.0003661,30]
[392196370,1761250727318,1000.0,0.0003661,60]
[392196371,1761250740045,1000.0,0.0003661,60]
[392196374,1761250749283,402.0527883,0.0003661,120]
[392196375,1761250752768,1000.0,0.0003661,30]
[392196376,1761250765520,1000.0,0.0003661,120]
[392196377,1761250778234,1000.0,0.0003661,120]
[392196378,1761250790962,1000.0,0.0003661,30]
[392196380,1761250802307,1000.0,0.0003661,30]
[392196381,1761250802731,1000.0,0.0003661,30]
[392196382,1761250802865,1000.0,0.0003661,30]
[392196383,1761250803308,270.05873213,0.0003661,120]
[392196384,1761250803368,519.49,0.0003661,120]
[392196385,1761250803424,450.0,0.0003661,120]
[392196386,1761250803599,1000.0,0.0003661,30]
[392196387,1761250803863,1000.0,0.0003661,30]
[392196388,1761250804083,1000.0,0.0003661,30]
[392196389,1761250805100,1000.0,0.0003661,30]
[392196390,1761250805760,1000.0,0.0003661,30]
[392196391,1761250805834,1000.0,0.0003661,30]
[392196392,1761250806919,1000.0,0.0003661,30]
[392196393,1761250807810,1000.0,0.0003661,30]
[392196394,1761250808089,1000.0,0.0003661,30]
[392196395,1761250809162,444.47159297,0.0003661,30]
[392196396,1761250809250,1000.0,0.0003661,30]
[392196397,1761250809490,1000.0,0.0003661,60]
[392196398,1761250810440,947.25163687,0.0003661,30]
[392196399,1761250810498,1000.0,0.0003661,30]
[392196400,1761250811580,1000.0,0.0003661,30]
[392196401,1761250812740,1000.0,0.0003661,30]
[392196402,1761250822191,1000.0,0.0003661,30]
[392196403,1761250834944,1000.0,0.0003661,30]
[392196404,1761250847685,1000.0,0.0003661,60]
[392196405,1761250860451,1006.44,0.0003661,60]
[392196406,1761250860594,200.0,0.0003661,120]
[392196408,1761250863602,695.05564802,0.0003661,120]
[392196410,1761250930048,151.0,0.00031,120]
[392196412,1761250944519,200.0,0.00036609,30]
[392196413,1761250945027,300.0,0.00036609,30]
[392196414,1761250955630,159.0,0.00031,120]
[392196416,1761250964840,214.8,0.00036609,30]
[392196420,1761250987816,1091.0,0.00036609,30]
[392196421,1761250991092,493.38448168,0.00036609,30]
[392196422,1761250992717,1091.0,0.00036609,30]
[392196423,1761250999140,500.0,0.00024932,2]
[392196426,1761251108510,8959.7076976,0.00015,2]
[392196427,1761251108539,5000.0,0.00015,2]
[392196428,1761251108563,5000.0,0.00015,2]
[392196429,1761251108590,1731.99,0.00015,2]
[392196430,1761251108614,5000.0,0.00015,2]
[392196431,1761251108644,72000.0,0.00015,2]
[392196432,1761251108675,817567.13876127,0.00015,2]
[392196433,1761251109578,759.42850112,0.00036609,90]
[392196434,1761251110999,999.999995,0.00036609,120]
[392196435,1761251111209,533.4726314,0.00036609,30]
[392196436,1761251112411,445.13212816,0.00036609,60]
[392196437,1761251112506,398.70431848,0.00036609,30]
[392196438,1761251112597,705.62822318,0.00036609,30]
[392196439,1761251112998,589.2165502,0.00036609,91]
[392196440,1761251113067,1231.27847537,0.00036609,120]
[392196441,1761251113373,330.83013286,0.00036609,30]
[392196442,1761251114982,914.76851042,0.00036609,30]
[392196443,1761251115141,474.26163756,0.00036609,30]
[392196444,1761251116650,621.48440251,0.00036609,120]
[392196445,1761251117849,784.22928233,0.00036609,30]
[392196446,1761251120453,1300.03299076,0.00036609,120]
[392196447,1761251123860,771.7707905,0.00036609,30]
[392196448,1761251123924,233.55056183,0.00036609,120]
[392196449,1761251125558,198.18576107,0.00036609,120]
[392196450,1761251128486,573.90980647,0.00036609,30]
[392196451,1761251129091,247.27098947,0.00036609,30]
[392196452,1761251132402,188.46533905,0.00036609,120]
[392196453,1761251141689,1119.803785,0.00036609,30]
[392196454,1761251143806,737.50672686,0.00036609,30]
[392196455,1761251145458,2077.4196712,0.00036609,120]
[392196456,1761251147497,306.8875662,0.00036609,120]
[392196457,1761251148123,-180.09581591,0.0002,2]
[392196458,1761251150915,895.83381153,0.00036609,30]
[392196459,1761251157986,1510.50294879,0.00036609,120]
[392196460,1761251158634,904.58906496,0.00036609,30]
[392196461,1761251161446,490.52347314,0.00036609,90]
[392196462,1761251161725,200.0,0.00036609,120]
[392196464,1761251164550,546.17953306,0.00036609,120]
[392196465,1761251165391,525.33648894,0.00036609,120]
[392196466,1761251165506,1161.95566788,0.00036609,120]